[Event "Titled Tuesday Blitz June 20 Late 2023"]
[White "Hartikainen, Jarmo"]
[Black "Ismayil, Malak"]
[WhiteFideId "503134"]
[BlackFideId "13412604"]
[WhiteElo "2161"]
[BlackElo "1868"]
[Result "0-1"]
[Round "1"]
[TimeControl "180+2"]
[Date "2023.06.20"]
[WhiteClock "0:00:00"]
[BlackClock "0:00:41"]
[Board "178"]

1. e4 {[%clk 0:03:00]}  e5 {[%clk 0:02:59]} 2. Nf3 {[%clk 0:03:00]}  Nc6 {[%clk 0:03:00]} 3. Bc4 {[%clk 0:02:59]}  Bc5 {[%clk 0:03:00]} 4. c3 {[%clk 0:02:59]}  Nf6 {[%clk 0:03:00]} 5. d4 {[%clk 0:02:57]}  exd4 {[%clk 0:03:01]} 6. b4 {[%clk 0:02:56]}  Bb6 {[%clk 0:03:01]} 7. e5 {[%clk 0:02:56]}  d5 {[%clk 0:02:59]} 8. exf6 {[%clk 0:02:55]}  dxc4 {[%clk 0:03:00]} 9. Qe2+ {[%clk 0:02:55]}  Be6 {[%clk 0:02:59]} 10. b5 {[%clk 0:02:54]}  Na5 {[%clk 0:02:48]} 11. cxd4 {[%clk 0:02:36]}  Qxf6 {[%clk 0:02:46]} 12. Bb2 {[%clk 0:02:27]}  Qf5 {[%clk 0:02:18]} 13. d5 {[%clk 0:02:12]}  Qxd5 {[%clk 0:02:15]} 14. Nc3 {[%clk 0:01:25]}  Qd3 {[%clk 0:02:14]} 15. Rd1 {[%clk 0:00:59]}  Qxe2+ {[%clk 0:02:12]} 16. Nxe2 {[%clk 0:00:59]}  O-O {[%clk 0:02:10]} 17. O-O {[%clk 0:00:59]}  Rfe8 {[%clk 0:02:08]} 18. Ned4 {[%clk 0:00:54]}  Bd5 {[%clk 0:02:00]} 19. Rfe1 {[%clk 0:00:53]}  c6 {[%clk 0:01:43]} 20. bxc6 {[%clk 0:00:34]}  Nxc6 {[%clk 0:01:44]} 21. Nf5 {[%clk 0:00:32]}  Bxf3 {[%clk 0:01:39]} 22. gxf3 {[%clk 0:00:26]}  f6 {[%clk 0:01:37]} 23. Rxe8+ {[%clk 0:00:23]}  Rxe8 {[%clk 0:01:35]} 24. Rd7 {[%clk 0:00:23]}  Re1+ {[%clk 0:01:01]} 25. Kg2 {[%clk 0:00:22]}  Re2 {[%clk 0:01:01]} 26. Rxg7+ {[%clk 0:00:21]}  Kf8 {[%clk 0:01:01]} 27. Ba3+ {[%clk 0:00:18]}  Ke8 {[%clk 0:00:59]} 28. Nd6+ {[%clk 0:00:17]}  Kd8 {[%clk 0:00:59]} 29. Nxb7+ {[%clk 0:00:15]}  Kc8 {[%clk 0:00:58]} 30. Nd6+ {[%clk 0:00:15]}  Kb8 {[%clk 0:00:58]} 31. Rg8+ {[%clk 0:00:09]}  Kc7 {[%clk 0:00:54]} 32. Nb5+ {[%clk 0:00:08]}  Kb7 {[%clk 0:00:48]} 33. Rg7+ {[%clk 0:00:08]}  Ka6 {[%clk 0:00:48]} 34. Nd6 {[%clk 0:00:05]}  Rxf2+ {[%clk 0:00:46]} 35. Kg3 {[%clk 0:00:00]}  Ne5 {[%clk 0:00:41]} 0-1


[Site "https://www.chess.com"]

[Event "Titled Tuesday Blitz June 20 Late 2023"]
[White "Levine, David"]
[Black "Leenhouts, Koen"]
[WhiteFideId "2011611"]
[BlackFideId "1008439"]
[WhiteElo "2127"]
[BlackElo "2409"]
[Result "0-1"]
[Round "1"]
[TimeControl "180+2"]
[Date "2023.06.20"]
[WhiteClock "0:00:59"]
[BlackClock "0:01:20"]
[Board "180"]

1. d4 {[%clk 0:02:59]}  d5 {[%clk 0:02:58]} 2. c4 {[%clk 0:02:59]}  e6 {[%clk 0:02:59]} 3. g3 {[%clk 0:02:59]}  a6 {[%clk 0:02:58]} 4. Bg2 {[%clk 0:02:58]}  Nf6 {[%clk 0:02:58]} 5. Nf3 {[%clk 0:02:57]}  Be7 {[%clk 0:02:54]} 6. O-O {[%clk 0:02:57]}  O-O {[%clk 0:02:54]} 7. Qc2 {[%clk 0:02:54]}  dxc4 {[%clk 0:02:53]} 8. Qxc4 {[%clk 0:02:53]}  b5 {[%clk 0:02:52]} 9. Qc2 {[%clk 0:02:53]}  Bb7 {[%clk 0:02:52]} 10. a4 {[%clk 0:02:53]}  Nbd7 {[%clk 0:02:45]} 11. axb5 {[%clk 0:02:51]}  axb5 {[%clk 0:02:46]} 12. Rxa8 {[%clk 0:02:48]}  Bxa8 {[%clk 0:02:41]} 13. Nc3 {[%clk 0:02:41]}  b4 {[%clk 0:02:39]} 14. Na4 {[%clk 0:02:40]}  Be4 {[%clk 0:02:31]} 15. Qd1 {[%clk 0:02:35]}  Qa8 {[%clk 0:02:29]} 16. Bf4 {[%clk 0:02:29]}  Nd5 {[%clk 0:02:26]} 17. b3 {[%clk 0:02:24]}  Nxf4 {[%clk 0:02:18]} 18. gxf4 {[%clk 0:02:23]}  Bd6 {[%clk 0:02:18]} 19. e3 {[%clk 0:02:22]}  Rd8 {[%clk 0:02:14]} 20. Ne1 {[%clk 0:02:13]}  Bxg2 {[%clk 0:02:10]} 21. Nxg2 {[%clk 0:02:13]}  Nf6 {[%clk 0:02:06]} 22. Ne1 {[%clk 0:02:05]}  c5 {[%clk 0:01:53]} 23. dxc5 {[%clk 0:01:55]}  Bxc5 {[%clk 0:01:46]} 24. Qc2 {[%clk 0:01:52]}  Bf8 {[%clk 0:01:43]} 25. Nb6 {[%clk 0:01:42]}  Qa5 {[%clk 0:01:35]} 26. Qc7 {[%clk 0:01:16]}  Rd6 {[%clk 0:01:22]} 27. Nc4 {[%clk 0:00:59]}  Qxc7 {[%clk 0:01:20]} 0-1


[Site "https://www.chess.com"]

[Event "Titled Tuesday Blitz June 20 Late 2023"]
[White "Ince, Taylan Ruzgar"]
[Black "Ricaurte Lopez, Juan Carlos"]
[WhiteFideId "44513089"]
[BlackFideId "3600327"]
[WhiteElo "2147"]
[BlackElo "2200"]
[Result "1-0"]
[Round "1"]
[TimeControl "180+2"]
[Date "2023.06.20"]
[WhiteClock "0:00:32"]
[BlackClock "0:00:00"]
[Board "181"]

1. e4 {[%clk 0:02:59]}  e6 {[%clk 0:02:51]} 2. d4 {[%clk 0:02:58]}  d5 {[%clk 0:02:51]} 3. Bd3 {[%clk 0:02:57]}  dxe4 {[%clk 0:02:48]} 4. Bxe4 {[%clk 0:02:57]}  Nf6 {[%clk 0:02:47]} 5. Bf3 {[%clk 0:02:57]}  c5 {[%clk 0:02:45]} 6. Ne2 {[%clk 0:02:56]}  Nc6 {[%clk 0:02:42]} 7. Be3 {[%clk 0:02:50]}  cxd4 {[%clk 0:02:38]} 8. Nxd4 {[%clk 0:02:46]}  Ne5 {[%clk 0:02:25]} 9. Nc3 {[%clk 0:02:45]}  Nxf3+ {[%clk 0:02:23]} 10. Qxf3 {[%clk 0:02:45]}  a6 {[%clk 0:02:21]} 11. O-O-O {[%clk 0:02:43]}  Qa5 {[%clk 0:02:05]} 12. Nb3 {[%clk 0:02:39]}  Qf5 {[%clk 0:01:59]} 13. Qg3 {[%clk 0:02:05]}  Bb4 {[%clk 0:01:38]} 14. Qxg7 {[%clk 0:01:34]}  Rg8 {[%clk 0:01:34]} 15. Qh6 {[%clk 0:01:34]}  Bxc3 {[%clk 0:01:28]} 16. bxc3 {[%clk 0:01:30]}  Bd7 {[%clk 0:01:23]} 17. Qh4 {[%clk 0:01:23]}  Bc6 {[%clk 0:01:16]} 18. Qd4 {[%clk 0:01:14]}  Nd5 {[%clk 0:00:52]} 19. Kb2 {[%clk 0:00:58]}  Rc8 {[%clk 0:00:46]} 20. Rhg1 {[%clk 0:00:50]}  Bb5 {[%clk 0:00:37]} 21. g4 {[%clk 0:00:41]}  Qg6 {[%clk 0:00:19]} 22. Bd2 {[%clk 0:00:39]}  Qf6 {[%clk 0:00:14]} 23. Qxf6 {[%clk 0:00:37]}  Nxf6 {[%clk 0:00:13]} 24. h3 {[%clk 0:00:36]}  Ne4 {[%clk 0:00:12]} 25. Be1 {[%clk 0:00:36]}  Ke7 {[%clk 0:00:10]} 26. f3 {[%clk 0:00:36]}  Nd6 {[%clk 0:00:08]} 27. Bh4+ {[%clk 0:00:36]}  f6 {[%clk 0:00:06]} 28. Bxf6+ {[%clk 0:00:34]}  Kxf6 {[%clk 0:00:06]} 29. Rxd6 {[%clk 0:00:35]}  Bc6 {[%clk 0:00:00]} 30. Re1 {[%clk 0:00:32]} 1-0


[Site "https://www.chess.com"]

[Event "Titled Tuesday Blitz June 20 Late 2023"]
[White "Keleberda, Tymur"]
[Black "Sailer, Mike"]
[WhiteFideId "14174294"]
[BlackFideId "2012901"]
[WhiteElo "2198"]
[BlackElo "2109"]
[Result "0-1"]
[Round "1"]
[TimeControl "180+2"]
[Date "2023.06.20"]
[WhiteClock "0:00:00"]
[BlackClock "0:00:09"]
[Board "183"]

1. e4 {[%clk 0:02:58]}  d5 {[%clk 0:02:59]} 2. exd5 {[%clk 0:02:58]}  Qxd5 {[%clk 0:02:58]} 3. Nc3 {[%clk 0:02:59]}  Qd6 {[%clk 0:02:59]} 4. d4 {[%clk 0:02:59]}  c6 {[%clk 0:02:59]} 5. Nf3 {[%clk 0:02:58]}  Bf5 {[%clk 0:02:58]} 6. Bc4 {[%clk 0:02:57]}  Nf6 {[%clk 0:02:50]} 7. Ne5 {[%clk 0:02:56]}  e6 {[%clk 0:02:49]} 8. g4 {[%clk 0:02:53]}  Be4 {[%clk 0:02:39]} 9. f3 {[%clk 0:02:51]}  Bd5 {[%clk 0:02:39]} 10. Bxd5 {[%clk 0:02:45]}  Nxd5 {[%clk 0:02:37]} 11. Nxd5 {[%clk 0:02:39]}  cxd5 {[%clk 0:02:35]} 12. f4 {[%clk 0:02:36]}  Nc6 {[%clk 0:02:34]} 13. c3 {[%clk 0:02:34]}  Nxe5 {[%clk 0:02:29]} 14. fxe5 {[%clk 0:02:34]}  Qa6 {[%clk 0:02:28]} 15. Qe2 {[%clk 0:02:33]}  Qxe2+ {[%clk 0:02:27]} 16. Kxe2 {[%clk 0:02:34]}  Be7 {[%clk 0:02:24]} 17. h4 {[%clk 0:02:32]}  O-O {[%clk 0:02:20]} 18. g5 {[%clk 0:02:28]}  b5 {[%clk 0:02:19]} 19. a3 {[%clk 0:02:28]}  a5 {[%clk 0:02:19]} 20. Bd2 {[%clk 0:02:28]}  Ra7 {[%clk 0:02:12]} 21. Raf1 {[%clk 0:02:25]}  Rb7 {[%clk 0:02:08]} 22. Rh3 {[%clk 0:02:24]}  Rfb8 {[%clk 0:01:58]} 23. Rhf3 {[%clk 0:02:23]}  Bf8 {[%clk 0:01:58]} 24. h5 {[%clk 0:02:17]}  Rc8 {[%clk 0:01:54]} 25. g6 {[%clk 0:02:15]}  fxg6 {[%clk 0:01:49]} 26. hxg6 {[%clk 0:02:16]}  hxg6 {[%clk 0:01:49]} 27. Rg1 {[%clk 0:02:12]}  b4 {[%clk 0:01:38]} 28. axb4 {[%clk 0:02:11]}  axb4 {[%clk 0:01:39]} 29. Rxg6 {[%clk 0:02:11]}  bxc3 {[%clk 0:01:38]} 30. bxc3 {[%clk 0:02:11]}  Rc6 {[%clk 0:01:28]} 31. Kd3 {[%clk 0:02:01]}  Ra6 {[%clk 0:01:24]} 32. Rf1 {[%clk 0:01:55]}  Rb2 {[%clk 0:01:12]} 33. Rg2 {[%clk 0:01:48]}  Rb7 {[%clk 0:01:08]} 34. Rgf2 {[%clk 0:01:45]}  Ra8 {[%clk 0:01:05]} 35. Rh1 {[%clk 0:01:42]}  Rf7 {[%clk 0:01:02]} 36. Rfh2 {[%clk 0:01:34]}  Rf5 {[%clk 0:00:59]} 37. Rh8+ {[%clk 0:01:32]}  Kf7 {[%clk 0:01:00]} 38. Rb1 {[%clk 0:01:28]}  Ra7 {[%clk 0:00:52]} 39. Ke2 {[%clk 0:01:21]}  Be7 {[%clk 0:00:48]} 40. Rbb8 {[%clk 0:01:17]}  Bg5 {[%clk 0:00:46]} 41. Rhf8+ {[%clk 0:01:00]}  Kg6 {[%clk 0:00:46]} 42. Rxf5 {[%clk 0:00:56]}  Kxf5 {[%clk 0:00:45]} 43. Rf8+ {[%clk 0:00:55]}  Kg6 {[%clk 0:00:43]} 44. Bxg5 {[%clk 0:00:42]}  Kxg5 {[%clk 0:00:43]} 45. Kd3 {[%clk 0:00:36]}  Rc7 {[%clk 0:00:42]} 46. Rf3 {[%clk 0:00:30]}  Kg4 {[%clk 0:00:40]} 47. Rf8 {[%clk 0:00:27]}  g5 {[%clk 0:00:40]} 48. Rf6 {[%clk 0:00:26]}  Rc6 {[%clk 0:00:40]} 49. c4 {[%clk 0:00:23]}  dxc4+ {[%clk 0:00:40]} 50. Kc3 {[%clk 0:00:23]}  Ra6 {[%clk 0:00:19]} 51. d5 {[%clk 0:00:16]}  Ra3+ {[%clk 0:00:16]} 52. Kb4 {[%clk 0:00:16]}  Re3 {[%clk 0:00:15]} 53. Rxe6 {[%clk 0:00:07]}  c3 {[%clk 0:00:11]} 54. d6 {[%clk 0:00:04]}  c2 {[%clk 0:00:10]} 55. d7 {[%clk 0:00:03]}  c1=Q {[%clk 0:00:10]} 56. d8=Q {[%clk 0:00:02]}  Qc3+ {[%clk 0:00:10]} 57. Kb5 {[%clk 0:00:00]}  Qb3+ {[%clk 0:00:09]} 0-1


[Site "https://www.chess.com"]

[Event "Titled Tuesday Blitz June 20 Late 2023"]
[White "Tarnowska, Aleksandra"]
[Black "ElDivis"]
[WhiteFideId "1180967"]
[WhiteElo "1776"]
[BlackElo "2536"]
[Result "1/2-1/2"]
[Round "1"]
[TimeControl "180+2"]
[Date "2023.06.20"]
[WhiteClock "0:00:06"]
[BlackClock "0:00:10"]
[Board "184"]

1. e4 {[%clk 0:02:59]}  c5 {[%clk 0:02:59]} 2. Nf3 {[%clk 0:02:58]}  d6 {[%clk 0:02:57]} 3. Bb5+ {[%clk 0:02:57]}  Bd7 {[%clk 0:02:56]} 4. Bxd7+ {[%clk 0:02:56]}  Nxd7 {[%clk 0:02:57]} 5. O-O {[%clk 0:02:57]}  Ngf6 {[%clk 0:02:56]} 6. d4 {[%clk 0:02:47]}  Nxe4 {[%clk 0:02:50]} 7. Re1 {[%clk 0:02:30]}  Nef6 {[%clk 0:02:50]} 8. Bf4 {[%clk 0:01:57]}  e6 {[%clk 0:02:43]} 9. Ng5 {[%clk 0:01:44]}  Be7 {[%clk 0:02:36]} 10. Nc3 {[%clk 0:01:31]}  O-O {[%clk 0:02:33]} 11. d5 {[%clk 0:00:54]}  e5 {[%clk 0:02:30]} 12. Be3 {[%clk 0:00:44]}  h6 {[%clk 0:02:28]} 13. Nf3 {[%clk 0:00:43]}  a6 {[%clk 0:02:23]} 14. a4 {[%clk 0:00:43]}  Re8 {[%clk 0:02:19]} 15. a5 {[%clk 0:00:42]}  Bf8 {[%clk 0:02:19]} 16. Qd2 {[%clk 0:00:41]}  Ng4 {[%clk 0:02:17]} 17. h3 {[%clk 0:00:41]}  Nxe3 {[%clk 0:02:16]} 18. Qxe3 {[%clk 0:00:42]}  f5 {[%clk 0:02:13]} 19. Ra4 {[%clk 0:00:33]}  e4 {[%clk 0:02:08]} 20. Nd2 {[%clk 0:00:30]}  Ne5 {[%clk 0:02:08]} 21. Qf4 {[%clk 0:00:24]}  Qf6 {[%clk 0:02:04]} 22. Nc4 {[%clk 0:00:10]}  Nxc4 {[%clk 0:01:58]} 23. Rxc4 {[%clk 0:00:11]}  g5 {[%clk 0:01:58]} 24. Qd2 {[%clk 0:00:11]}  Bg7 {[%clk 0:01:58]} 25. Na4 {[%clk 0:00:07]}  Re7 {[%clk 0:01:51]} 26. Nb6 {[%clk 0:00:07]}  Rae8 {[%clk 0:01:51]} 27. c3 {[%clk 0:00:07]}  f4 {[%clk 0:01:50]} 28. Qc2 {[%clk 0:00:05]}  e3 {[%clk 0:01:47]} 29. fxe3 {[%clk 0:00:05]}  fxe3 {[%clk 0:01:48]} 30. Qe2 {[%clk 0:00:06]}  Rf8 {[%clk 0:01:42]} 31. Rg4 {[%clk 0:00:05]}  Qe5 {[%clk 0:01:21]} 32. Nc4 {[%clk 0:00:04]}  Qxd5 {[%clk 0:01:21]} 33. Nxe3 {[%clk 0:00:04]}  Qe6 {[%clk 0:01:17]} 34. Rg3 {[%clk 0:00:03]}  Be5 {[%clk 0:01:15]} 35. Rf3 {[%clk 0:00:03]}  Rxf3 {[%clk 0:01:09]} 36. Qxf3 {[%clk 0:00:04]}  Bf4 {[%clk 0:01:06]} 37. Kf2 {[%clk 0:00:04]}  Rf7 {[%clk 0:00:57]} 38. Kg1 {[%clk 0:00:02]}  Bh2+ {[%clk 0:00:54]} 39. Kxh2 {[%clk 0:00:03]}  Rxf3 {[%clk 0:00:54]} 40. gxf3 {[%clk 0:00:04]}  Qb3 {[%clk 0:00:52]} 41. Re2 {[%clk 0:00:04]}  Qb5 {[%clk 0:00:52]} 42. Rg2 {[%clk 0:00:03]}  Qd3 {[%clk 0:00:49]} 43. Ng4 {[%clk 0:00:03]}  Kg7 {[%clk 0:00:50]} 44. h4 {[%clk 0:00:03]}  Qxf3 {[%clk 0:00:48]} 45. hxg5 {[%clk 0:00:03]}  hxg5 {[%clk 0:00:47]} 46. Nf2 {[%clk 0:00:02]}  Qf4+ {[%clk 0:00:47]} 47. Kg1 {[%clk 0:00:02]}  Qc1+ {[%clk 0:00:47]} 48. Kh2 {[%clk 0:00:02]}  Qxb2 {[%clk 0:00:46]} 49. Rxg5+ {[%clk 0:00:02]}  Kf6 {[%clk 0:00:46]} 50. Rg2 {[%clk 0:00:03]}  Ke7 {[%clk 0:00:38]} 51. Ne4 {[%clk 0:00:03]}  Qb1 {[%clk 0:00:37]} 52. Rg7+ {[%clk 0:00:03]}  Kf8 {[%clk 0:00:34]} 53. Rg4 {[%clk 0:00:02]}  Qc2+ {[%clk 0:00:33]} 54. Kg3 {[%clk 0:00:02]}  Qd3+ {[%clk 0:00:33]} 55. Kh4 {[%clk 0:00:03]}  d5 {[%clk 0:00:32]} 56. Nf6 {[%clk 0:00:03]}  Qf5 {[%clk 0:00:26]} 57. Nh5 {[%clk 0:00:02]}  Qf2+ {[%clk 0:00:25]} 58. Kg5 {[%clk 0:00:02]}  d4 {[%clk 0:00:23]} 59. Rf4+ {[%clk 0:00:02]}  Qxf4+ {[%clk 0:00:23]} 60. Nxf4 {[%clk 0:00:03]}  dxc3 {[%clk 0:00:22]} 61. Nd3 {[%clk 0:00:03]}  c4 {[%clk 0:00:21]} 62. Nc1 {[%clk 0:00:04]}  Ke7 {[%clk 0:00:21]} 63. Kf5 {[%clk 0:00:04]}  Kd6 {[%clk 0:00:22]} 64. Ke4 {[%clk 0:00:05]}  Kc5 {[%clk 0:00:22]} 65. Ke5 {[%clk 0:00:04]}  Kb4 {[%clk 0:00:21]} 66. Kd4 {[%clk 0:00:04]}  Kxa5 {[%clk 0:00:18]} 67. Kxc4 {[%clk 0:00:04]}  c2 {[%clk 0:00:16]} 68. Kc3 {[%clk 0:00:05]}  b5 {[%clk 0:00:17]} 69. Kxc2 {[%clk 0:00:05]}  Kb4 {[%clk 0:00:17]} 70. Kb2 {[%clk 0:00:06]}  a5 {[%clk 0:00:17]} 71. Na2+ {[%clk 0:00:06]}  Kc4 {[%clk 0:00:17]} 72. Nc3 {[%clk 0:00:06]}  b4 {[%clk 0:00:17]} 73. Nb1 {[%clk 0:00:06]}  a4 {[%clk 0:00:17]} 74. Nd2+ {[%clk 0:00:06]}  Kd3 {[%clk 0:00:17]} 75. Nb1 {[%clk 0:00:06]}  Ke2 {[%clk 0:00:17]} 76. Ka2 {[%clk 0:00:05]}  Kd1 {[%clk 0:00:17]} 77. Kb2 {[%clk 0:00:05]}  Ke2 {[%clk 0:00:14]} 78. Nc3+ {[%clk 0:00:05]}  bxc3+ {[%clk 0:00:12]} 79. Kxc3 {[%clk 0:00:05]}  a3 {[%clk 0:00:09]} 80. Kb3 {[%clk 0:00:06]}  a2 {[%clk 0:00:10]} 81. Kxa2 {[%clk 0:00:06]} 1/2-1/2


[Site "https://www.chess.com"]

[Event "Titled Tuesday Blitz June 20 Late 2023"]
[White "White, John S."]
[Black "Krsnik Cohar, Ivan Vihor"]
[WhiteFideId "2502348"]
[BlackFideId "14520044"]
[WhiteElo "2013"]
[BlackElo "2414"]
[Result "0-1"]
[Round "1"]
[TimeControl "180+2"]
[Date "2023.06.20"]
[WhiteClock "0:00:00"]
[BlackClock "0:00:24"]
[Board "190"]

1. e4 {[%clk 0:02:57]}  c5 {[%clk 0:03:00]} 2. Nf3 {[%clk 0:02:56]}  g6 {[%clk 0:03:00]} 3. d4 {[%clk 0:02:54]}  cxd4 {[%clk 0:03:01]} 4. Nxd4 {[%clk 0:02:51]}  Nf6 {[%clk 0:03:01]} 5. Nc3 {[%clk 0:02:50]}  Nc6 {[%clk 0:03:02]} 6. Be3 {[%clk 0:02:46]}  Bg7 {[%clk 0:03:01]} 7. Be2 {[%clk 0:02:42]}  O-O {[%clk 0:03:00]} 8. O-O {[%clk 0:02:36]}  d5 {[%clk 0:03:00]} 9. exd5 {[%clk 0:02:30]}  Nxd5 {[%clk 0:03:01]} 10. Nxd5 {[%clk 0:02:28]}  Qxd5 {[%clk 0:03:02]} 11. Bf3 {[%clk 0:02:13]}  Qc4 {[%clk 0:03:02]} 12. Nxc6 {[%clk 0:02:08]}  bxc6 {[%clk 0:03:01]} 13. c3 {[%clk 0:02:02]}  Rb8 {[%clk 0:02:53]} 14. Qc2 {[%clk 0:01:42]}  Bf5 {[%clk 0:02:53]} 15. Qe2 {[%clk 0:01:22]}  Qxe2 {[%clk 0:02:51]} 16. Bxe2 {[%clk 0:01:23]}  Rxb2 {[%clk 0:02:50]} 17. Bf3 {[%clk 0:01:23]}  Bxc3 {[%clk 0:02:28]} 18. Rfc1 {[%clk 0:01:16]}  Bc2 {[%clk 0:01:45]} 19. Be4 {[%clk 0:00:45]}  Rfb8 {[%clk 0:01:03]} 20. Bxc2 {[%clk 0:00:39]}  Rxc2 {[%clk 0:01:03]} 21. Rxc2 {[%clk 0:00:32]}  Bxa1 {[%clk 0:01:02]} 22. g3 {[%clk 0:00:27]}  Rb2 {[%clk 0:00:54]} 23. Rxb2 {[%clk 0:00:22]}  Bxb2 {[%clk 0:00:53]} 24. Bxa7 {[%clk 0:00:23]}  Ba3 {[%clk 0:00:53]} 25. Bd4 {[%clk 0:00:20]}  f6 {[%clk 0:00:50]} 26. Kf1 {[%clk 0:00:19]}  Kf7 {[%clk 0:00:49]} 27. Ke2 {[%clk 0:00:19]}  Ke6 {[%clk 0:00:50]} 28. Kd3 {[%clk 0:00:18]}  Kd5 {[%clk 0:00:50]} 29. f4 {[%clk 0:00:17]}  e5 {[%clk 0:00:49]} 30. fxe5 {[%clk 0:00:17]}  fxe5 {[%clk 0:00:50]} 31. Be3 {[%clk 0:00:16]}  e4+ {[%clk 0:00:39]} 32. Kc3 {[%clk 0:00:16]}  h5 {[%clk 0:00:30]} 33. Kb3 {[%clk 0:00:16]}  Bc5 {[%clk 0:00:27]} 34. Bxc5 {[%clk 0:00:10]}  Kxc5 {[%clk 0:00:28]} 35. a4 {[%clk 0:00:09]}  e3 {[%clk 0:00:21]} 36. Kc3 {[%clk 0:00:08]}  e2 {[%clk 0:00:21]} 37. Kd2 {[%clk 0:00:08]}  Kb4 {[%clk 0:00:22]} 38. Kxe2 {[%clk 0:00:09]}  Kxa4 {[%clk 0:00:22]} 39. Kd2 {[%clk 0:00:09]}  Kb3 {[%clk 0:00:22]} 40. Kd3 {[%clk 0:00:08]}  c5 {[%clk 0:00:22]} 41. Kd2 {[%clk 0:00:07]}  c4 {[%clk 0:00:22]} 42. Kc1 {[%clk 0:00:07]}  Kc3 {[%clk 0:00:23]} 43. h4 {[%clk 0:00:06]}  Kd3 {[%clk 0:00:23]} 44. Kd1 {[%clk 0:00:06]}  c3 {[%clk 0:00:23]} 45. Kc1 {[%clk 0:00:06]}  c2 {[%clk 0:00:24]} 46. g4 {[%clk 0:00:05]}  hxg4 {[%clk 0:00:24]} 47. h5 {[%clk 0:00:00]}  gxh5 {[%clk 0:00:24]} 0-1


[Site "https://www.chess.com"]

[Event "Titled Tuesday Blitz June 20 Late 2023"]
[White "Deng, Henry"]
[Black "Dmitriev, Sergey"]
[WhiteFideId "30965454"]
[BlackFideId "14101785"]
[WhiteElo "2529"]
[BlackElo "2132"]
[Result "1-0"]
[Round "1"]
[TimeControl "180+2"]
[Date "2023.06.20"]
[WhiteClock "0:00:50"]
[BlackClock "0:00:24"]
[Board "191"]

1. e4 {[%clk 0:03:00]}  d6 {[%clk 0:02:59]} 2. d4 {[%clk 0:02:59]}  g6 {[%clk 0:02:57]} 3. Nc3 {[%clk 0:02:58]}  Bg7 {[%clk 0:02:58]} 4. Be3 {[%clk 0:02:56]}  Nf6 {[%clk 0:02:58]} 5. Qd2 {[%clk 0:02:55]}  O-O {[%clk 0:02:59]} 6. Bh6 {[%clk 0:02:52]}  Nc6 {[%clk 0:02:58]} 7. O-O-O {[%clk 0:02:50]}  e5 {[%clk 0:02:55]} 8. Bxg7 {[%clk 0:02:43]}  Kxg7 {[%clk 0:02:54]} 9. dxe5 {[%clk 0:02:33]}  dxe5 {[%clk 0:02:47]} 10. Qg5 {[%clk 0:02:32]}  Qe7 {[%clk 0:02:45]} 11. f3 {[%clk 0:02:17]}  h6 {[%clk 0:02:43]} 12. Qe3 {[%clk 0:02:16]}  Nd4 {[%clk 0:02:40]} 13. Nge2 {[%clk 0:02:16]}  c5 {[%clk 0:02:38]} 14. h4 {[%clk 0:02:16]}  h5 {[%clk 0:02:36]} 15. Nb1 {[%clk 0:02:07]}  Qc7 {[%clk 0:02:29]} 16. c3 {[%clk 0:01:58]}  Nxe2+ {[%clk 0:02:26]} 17. Bxe2 {[%clk 0:01:54]}  Be6 {[%clk 0:02:25]} 18. a3 {[%clk 0:01:49]}  Rad8 {[%clk 0:02:22]} 19. Nd2 {[%clk 0:01:48]}  Rd7 {[%clk 0:02:17]} 20. Bb5 {[%clk 0:01:44]}  Rd6 {[%clk 0:02:10]} 21. Qg5 {[%clk 0:01:37]}  Rfd8 {[%clk 0:02:04]} 22. Qxe5 {[%clk 0:01:36]}  Qb6 {[%clk 0:01:58]} 23. Be2 {[%clk 0:01:32]}  Ba2 {[%clk 0:01:36]} 24. Qg5 {[%clk 0:01:20]}  Nh7 {[%clk 0:01:28]} 25. Qe3 {[%clk 0:01:19]}  Qc6 {[%clk 0:01:17]} 26. g4 {[%clk 0:01:16]}  Nf6 {[%clk 0:01:13]} 27. e5 {[%clk 0:01:08]}  Nd5 {[%clk 0:01:10]} 28. Qg5 {[%clk 0:01:04]}  f6 {[%clk 0:01:00]} 29. exf6+ {[%clk 0:01:04]}  Nxf6 {[%clk 0:00:53]} 30. gxh5 {[%clk 0:01:04]}  Nxh5 {[%clk 0:00:48]} 31. Rhg1 {[%clk 0:01:04]}  Kh7 {[%clk 0:00:47]} 32. f4 {[%clk 0:00:54]}  Rd5 {[%clk 0:00:45]} 33. Qe7+ {[%clk 0:00:52]}  Kh8 {[%clk 0:00:36]} 34. Bxh5 {[%clk 0:00:51]}  R8d7 {[%clk 0:00:34]} 35. Qf8+ {[%clk 0:00:50]}  Kh7 {[%clk 0:00:24]} 36. Bxg6+ {[%clk 0:00:50]} 1-0


[Site "https://www.chess.com"]

[Event "Titled Tuesday Blitz June 20 Late 2023"]
[White "Burke, Paul"]
[Black "Perske, Thore"]
[WhiteFideId "2605767"]
[BlackFideId "12902195"]
[WhiteElo "1915"]
[BlackElo "2336"]
[Result "0-1"]
[Round "1"]
[TimeControl "180+2"]
[Date "2023.06.20"]
[WhiteClock "0:00:00"]
[BlackClock "0:00:19"]
[Board "192"]

1. e4 {[%clk 0:03:00]}  e6 {[%clk 0:03:00]} 2. d4 {[%clk 0:03:00]}  d5 {[%clk 0:03:00]} 3. e5 {[%clk 0:02:55]}  c5 {[%clk 0:03:00]} 4. Qg4 {[%clk 0:02:54]}  cxd4 {[%clk 0:03:00]} 5. Nf3 {[%clk 0:02:54]}  Nc6 {[%clk 0:03:00]} 6. Bd3 {[%clk 0:02:54]}  h5 {[%clk 0:02:57]} 7. Qg3 {[%clk 0:02:53]}  h4 {[%clk 0:02:56]} 8. Qg4 {[%clk 0:02:53]}  Nh6 {[%clk 0:02:46]} 9. Bxh6 {[%clk 0:02:44]}  Rxh6 {[%clk 0:02:46]} 10. O-O {[%clk 0:02:43]}  Bd7 {[%clk 0:02:46]} 11. c3 {[%clk 0:02:41]}  dxc3 {[%clk 0:02:46]} 12. Nxc3 {[%clk 0:02:41]}  h3 {[%clk 0:02:41]} 13. g3 {[%clk 0:02:40]}  g6 {[%clk 0:02:32]} 14. Rfe1 {[%clk 0:02:12]}  Bg7 {[%clk 0:02:29]} 15. Nb5 {[%clk 0:02:07]}  Kf8 {[%clk 0:02:27]} 16. Nd6 {[%clk 0:01:54]}  Kg8 {[%clk 0:02:22]} 17. Nxb7 {[%clk 0:01:47]}  Qb6 {[%clk 0:02:21]} 18. Nd6 {[%clk 0:01:44]}  Qxb2 {[%clk 0:02:13]} 19. Qf4 {[%clk 0:01:21]}  Be8 {[%clk 0:02:07]} 20. Rab1 {[%clk 0:01:00]}  Qc3 {[%clk 0:02:07]} 21. Bb5 {[%clk 0:00:56]}  Rh5 {[%clk 0:01:48]} 22. Rbc1 {[%clk 0:00:52]}  Qa5 {[%clk 0:01:43]} 23. Bxc6 {[%clk 0:00:49]}  Bxc6 {[%clk 0:01:43]} 24. Qxf7+ {[%clk 0:00:48]}  Kh7 {[%clk 0:01:43]} 25. Rxc6 {[%clk 0:00:44]}  Rf8 {[%clk 0:01:40]} 26. Qxe6 {[%clk 0:00:19]}  Rxf3 {[%clk 0:01:40]} 27. Rf1 {[%clk 0:00:18]}  Rxe5 {[%clk 0:01:30]} 28. Qg4 {[%clk 0:00:12]}  Qa3 {[%clk 0:01:08]} 29. Qxh3+ {[%clk 0:00:09]}  Rh5 {[%clk 0:01:08]} 30. Qg4 {[%clk 0:00:08]}  Rf6 {[%clk 0:00:58]} 31. Nf7 {[%clk 0:00:06]}  Rxc6 {[%clk 0:00:56]} 32. Ng5+ {[%clk 0:00:06]}  Rxg5 {[%clk 0:00:40]} 33. Qxg5 {[%clk 0:00:05]}  Qc5 {[%clk 0:00:30]} 34. Qh4+ {[%clk 0:00:05]}  Kg8 {[%clk 0:00:25]} 35. Qd8+ {[%clk 0:00:05]}  Kh7 {[%clk 0:00:23]} 36. Qh4+ {[%clk 0:00:04]}  Bh6 {[%clk 0:00:23]} 37. Qg4 {[%clk 0:00:00]}  Qe7 {[%clk 0:00:19]} 0-1


[Site "https://www.chess.com"]